{"text_format":"1","workbook":"xlsx","n_sheets":5,"sheets":["A) ESTADO REPR. GASTOS","B) DETALLE OTROS ING. O SUBV.","C) Gastos de Personal","D) Actividades Científicas","D) Otros Gastos"],"not_rendered":{"charts":0,"images":0,"macros":0,"external_links":0,"defined_names":14,"comments":0,"pivot_tables":0},"unopened":[],"bounds":{"document_bytes":16777216,"sheet_cells":100000,"rows_first":2000,"rows_last":500,"rows_between":2000,"halvings":0,"cell_chars":16384,"cell_head_chars":4096},"cells_cut":0,"cells_raw":0,"read":"whole","date_system":"1900"}

{"sheet":"A) ESTADO REPR. GASTOS","index":0,"n_rows":145,"n_cols":10,"rows_kept":145,"cut":false,"hidden":false,"merged":[[144,0,144,9],[89,2,99,3],[83,7,85,9],[115,0,115,1],[121,0,121,9],[123,0,123,9],[106,0,106,9],[107,0,107,9],[113,0,113,1],[114,0,114,1],[83,0,83,1],[84,0,84,1],[85,0,85,1],[87,0,87,1],[118,4,118,5],[89,8,99,9],[1,0,1,9],[3,0,3,9],[76,0,76,9],[6,1,6,8],[7,1,7,8],[8,3,8,8],[16,1,16,9],[17,1,17,9],[98,0,98,1],[5,1,5,2],[18,1,18,9],[19,1,19,9],[27,0,27,9],[88,0,88,1],[83,2,85,3],[101,0,101,1],[100,0,100,1],[102,0,102,1],[103,0,103,1],[109,0,109,9],[105,0,105,9],[108,0,108,9],[100,4,101,5],[120,0,120,9],[87,2,87,3],[80,0,80,1],[77,0,77,9],[21,1,21,6],[89,0,89,1],[90,0,90,1],[95,0,95,1],[96,0,96,1],[97,0,97,1],[86,0,86,1],[92,0,92,1],[93,0,93,1],[92,7,93,7],[112,0,112,1],[99,0,99,1]]}
[]
["Subprograma Severo Ochoa. Convocatoria 2013- Informe de Seguimiento Económico Bienal. Memoria económica abreviada (ver.17/06/2016)"]
[]
[" MEMORIA ECONÓMICA ABREVIADA"]
[]
["REFERENCIA DE LA AYUDA:","Introduzca referencia"]
["BENEFICIARIO:","Introduzca aquí el nombre de la entidad beneficiaria"]
["CENTRO:","Introduzca aquí el nombre del Centro Acreditado como Severo Ochoa"]
["AÑO:","Año ","N.I.F.:","Introduzca aquí el NIF del beneficiario"]
[]
[" PERIODO JUSTIFICADO :","INICIO (dd/mm/aaaa):",null,"2014-07-01"]
[null,"FIN (dd/mm/aaaa):",null,"2016-06-30"]
[]
[]
["MODIFICACIONES DE LA RESOLUCIÓN DE CONCESIÓN"]
[]
["FECHA DE LA RESOLUCIÓN","CONCEPTO MODIFICADO"]
[]
[]
[]
[]
["Fdo. D./Dña."]
["FECHA DE REALIZACIÓN DE LA MEMORIA:"]
[]
[]
["ESTADO REPRESENTATIVO DE LOS GASTOS INCURRIDOS EN LA REALIZACIÓN DE LAS ACTIVIDADES"]
[]
["Incluya a continuación una descripción de los gastos realizados imputables a la subvención recibida, e indique la relación del gasto con los programas de investigación y de recursos humanos. "]
[]
[]
[]
[]
[]
[]
[]
[]
[]
[]
[]
[]
[]
[]
[]
[]
[]
[]
[]
[]
[]
[]
[]
[]
[]
[]
[]
[]
[]
[]
[]
[]
[]
[]
[]
[]
[]
[]
[]
[]
[]
[]
[]
[]
[]
[]
[]
[]
["A continuación consigne los valores totales correspondientes a los conceptos de gasto que se indican. Incluya el gasto total realizado en la columna correspondiente a \"gasto real\", y el imputado a la ayuda en la columna \"Gasto imputable a SO (€)\". Solamente debe rellenar las casillas en color verde claro y verde oscuro."]
["Compruebe que estos totales corresponden con la suma de los importes detallados en los listados de facturas aportados en la justificación económica."]
[]
["GASTOS REALIZADOS",null,"Presupuesto (1)","% ","Gasto real (€)","Cofinanciación (€)","Gasto imputable a SO (€)","% gasto total","Remanente","Gastado (en % presup.)"]
[" COSTES DIRECTOS",null,null,{"$f":"+C81/$C$104","v":{"$error":"#DIV/0!"}},{"$f":"+E83+E87+E89","v":0},{"$f":"+F83+F87+F89","v":0},{"$f":"+G83+G87+G89","v":0},{"$f":"+G81/$G$104","v":{"$error":"#DIV/0!"}},{"$f":"+C81-G81","v":0},{"$f":"+G81/$C$104","v":{"$error":"#DIV/0!"}}]
["GASTOS PERSONAL (2)",null,{"$f":"+C83+C87","v":0},{"$f":"+C82/$C$104","v":{"$error":"#DIV/0!"}},{"$f":"+E83+E87","v":0},{"$f":"+F83+F87","v":0},{"$f":"+G83+G87","v":0},{"$f":"+G82/$G$104","v":{"$error":"#DIV/0!"}},null,{"$f":"+G82/$C$104","v":{"$error":"#DIV/0!"}}]
["CONTRATACIÓN",null,{"$f":"C81-(C87+C89)","v":0},null,{"$f":"SUM(E84:E86)","v":0},{"$f":"E83-G83","v":0},{"$f":"SUM(G84:G86)","v":0},{"$f":"+G83/$G$104","v":{"$error":"#DIV/0!"}},null,{"$error":"#DIV/0!"}]
["1.  Salario bruto ",null,null,null,null,{"$f":"E84-G84","v":0}]
["2.  Seguridad Social (empresa)",null,null,null,null,{"$f":"E85-G85","v":0}]
["3. Pagas extras y atrasos",null,null,null,null,0]
[" COMPLEMENTOS SALARIALES",null,null,{"$f":"+C87/$C$104","v":{"$error":"#DIV/0!"}},{"$f":"SUM(E88)","v":0},0,{"$f":"SUM(G88)","v":0},{"$f":"+G87/$G$104","v":{"$error":"#DIV/0!"}},{"$f":"+C87-G87","v":0},{"$f":"+G87/$C$104","v":{"$error":"#DIV/0!"}}]
["4. Complementos salariales (2)",null,null,null,null,0]
["GASTOS DE EJECUCIÓN",null,null,{"$f":"+C89/$C$104","v":{"$error":"#DIV/0!"}},{"$f":"+E90+E92+E95","v":0},{"$f":"+F90+F92+F95","v":0},{"$f":"+G90+G92+G95","v":0},{"$f":"+G89/$G$104","v":{"$error":"#DIV/0!"}},null,{"$f":"+G89/$C$104","v":{"$error":"#DIV/0!"}}]
["EQUIPAMIENTO",null,null,null,{"$f":"SUM(E91:E91)","v":0},0,{"$f":"SUM(G91:G91)","v":0},{"$f":"+G90/$G$104","v":{"$error":"#DIV/0!"}}]
["5. Bienes inventariables",null,null,null,null,0]
["ORGANIZACIÓN  ACTIVIDADES CIENTÍFICAS",null,null,null,{"$f":"SUM(E93:E94)","v":0},{"$f":"SUM(F93:F94)","v":0},0,{"$f":"+G92/$G$104","v":{"$error":"#DIV/0!"}}]
["6. Organización de actividades científicas, conferencias, seminarios, etc.",null,null,null,null,{"$f":"E93-G93","v":0}]
["7. Viajes y dietas de las actividades científicas organizadas (3)",null,null,null,null,{"$f":"E94-G94","v":0}]
[" OTROS GASTOS ",null,null,null,{"$f":"SUM(E96:E100)","v":0},{"$f":"E95-G95","v":0},{"$f":"SUM(G96:G100)","v":0},{"$f":"+G95/$G$104","v":{"$error":"#DIV/0!"}}]
["8. Material fungible",null,null,null,null,{"$f":"E96-G96","v":0},null,{"$error":"#DIV/0!"}]
["9. Contratación  (consultoría, asistencia técnica u otros servicios)",null,null,null,null,0,null,{"$error":"#DIV/0!"}]
["10. Viajes y dietas del personal del centro o de otras personas, imputables al proyecto. (3)",null,null,null,null,0,null,{"$error":"#DIV/0!"}]
["11. Otros (especificar)",null,null,null,null,0,null,{"$error":"#DIV/0!"}]
["12. Informe de auditoría (4)",null,null,null,null,0,null,{"$error":"#DIV/0!"}]
[" COSTES INDIRECTOS (resolución) (5)",null,null,{"$f":"+C101/$C$104","v":{"$error":"#DIV/0!"}},null,null,{"$f":"+G102","v":{"$error":"#DIV/0!"}},{"$f":"+G101/$G$104","v":{"$error":"#DIV/0!"}},{"$f":"+C101-G101","v":{"$error":"#DIV/0!"}},{"$f":"+G101/$C$104","v":{"$error":"#DIV/0!"}}]
["COSTES INDIRECTOS ( y % C. personal)",null,null,{"$f":"C101/$C$82","v":{"$error":"#DIV/0!"}},null,null,{"$f":"IF((G82*D102)>C101,C101,(G82*D102))","v":{"$error":"#DIV/0!"}},{"$f":"G102/$G$82","v":{"$error":"#DIV/0!"}}]
[]
["TOTAL",null,{"$f":"+C82+C89+C101","v":0},{"$f":"+D81+D101","v":{"$error":"#DIV/0!"}},{"$f":"+E81+E101","v":0},0,{"$f":"+G81+G101","v":{"$error":"#DIV/0!"}},{"$f":"+H81+H101","v":{"$error":"#DIV/0!"}},{"$error":"#DIV/0!"},{"$f":"+G104/$C$104","v":{"$error":"#DIV/0!"}}]
[]
["(1) Introduzca en las casillas marcadas en verde oscuro el presupuesto y la distribución que figura en la resolución de concesión, totalizando 4.000.000€. En el caso de que ésta haya sido modificada, consigne los datos de la última modificación. Las cantidades de \"complementos salariales\" y \"costes indirectos\" son máximos. "]
["(2) Introduzca en el Anexo 1 los detalles correspondientes al personal contratado así como el que ha percibido complementos salariales. "]
["(3) En la justificación económica podrá aportar una tabla excel con el detalle de todos los gastos correspondientes a viajes y dietas, incluyendo los relacionados con la organización de actividades científicas imputables a la ayuda Severo Ochoa. De no hacerlo en este momento, deberá hacerlo en la justificación final."]
["(4) Se podrá imputar un máximo de 10.000 euros. Este gasto se podrá hacer al terminar el periodo de ejecución, durante el plazo de justificación final."]
["(5) Los costes indirectos que finalmente se imputen deben corresponder a costes reales, con un tope del 15% de los gastos de personal realizados y justificados válidamente. Por lo tanto, los datos de la fila 102 \"COSTES INDIRECTOS y % de C. personal\" son una aproximación y representan el máximo que puede imputarse a la ayuda."]
[]
["INGRESOS Y GASTOS DE LA ACTIVIDAD (7)",null,"Presupuesto   (€)","%",null,null,"Gasto (€)","%","Resto","Gastado (%)"]
["1. Ayuda Severo Ochoa",null,{"$f":"C104","v":0},{"$f":"+C113/$C$117","v":{"$error":"#DIV/0!"}},null,null,{"$f":"G104","v":{"$error":"#DIV/0!"}},{"$f":"+G113/$G$117","v":{"$error":"#DIV/0!"}},{"$f":"+C113-G113","v":{"$error":"#DIV/0!"}},{"$f":"G113/C113","v":{"$error":"#DIV/0!"}}]
["2. Otras subvenciones o ayudas",null,null,{"$f":"+C114/$C$117","v":{"$error":"#DIV/0!"}},null,null,null,{"$f":"+G114/$G$117","v":{"$error":"#DIV/0!"}},{"$f":"+C114-G114","v":0},{"$f":"G114/C114","v":{"$error":"#DIV/0!"}}]
["3. Financiación de la propia entidad",null,null,{"$f":"+C115/$C$117","v":{"$error":"#DIV/0!"}},null,null,null,{"$f":"+G115/$G$117","v":{"$error":"#DIV/0!"}},0,{"$f":"G115/C115","v":{"$error":"#DIV/0!"}}]
["4. Otros ingresos (especificar) (8)",null,null,{"$f":"+C116/$C$117","v":{"$error":"#DIV/0!"}},null,null,null,{"$f":"+G116/$G$117","v":{"$error":"#DIV/0!"}},0,{"$f":"G116/C116","v":{"$error":"#DIV/0!"}}]
["TOTAL INGRESOS",null,{"$f":"SUM(C113:C116)","v":0},{"$f":"SUM(D113:D116)","v":{"$error":"#DIV/0!"}},null,null,{"$f":"SUM(G113:G115)","v":{"$error":"#DIV/0!"}},{"$f":"SUM(H113:H115)","v":{"$error":"#DIV/0!"}},{"$f":"+C117-G117","v":{"$error":"#DIV/0!"}},{"$f":"G117/C117","v":{"$error":"#DIV/0!"}}]
[]
["OTRAS FUENTES",null,{"$f":"+C117-C104","v":0},{"$f":"+C119/$C$117","v":{"$error":"#DIV/0!"}},null,null,{"$f":"+G117-G104","v":{"$error":"#DIV/0!"}},{"$f":"+G119/$G$117","v":{"$error":"#DIV/0!"}},{"$f":"+I117-I104","v":{"$error":"#DIV/0!"}},{"$f":"G119/C119","v":{"$error":"#DIV/0!"}}]
[]
["(7) Recuerde que la ayuda \"Severo Ochoa\" es compatible con otras ayudas siempre que no se supere el coste de la actividad realizada. En particular, es posible utilizar los fondos Severo Ochoa para cofinanciar otras ayudas de los planes nacionales de I+D+i. Por ello, debe justificar haber hecho gastos por el valor de la casilla  \"Total ingresos\" (C117) o, por el contrario, devolver el remanente. "]
["(8) Incluye los ingresos por pago de cuotas, matrículas o inscripciones a las actividades científicas, conferencias, etc. organizadas por el centro."]
[]
["Indique las principales causas que explican las desviaciones sobre la distribución del presupuesto establecido en la resolución de concesión y justifíquelas."]
[]
[]
[]
[]
[]
[]
[]
[]
[]
[]
[]
[]
[]
[]
[]
[]
[]
[]
[]
[]
["Observaciones por parte del beneficiario"]

{"sheet":"B) DETALLE OTROS ING. O SUBV.","index":1,"n_rows":78,"n_cols":9,"rows_kept":78,"cut":false,"hidden":false,"merged":[[48,2,48,6],[41,2,41,6],[42,2,42,6],[43,2,43,6],[44,2,44,6],[45,2,45,6],[47,2,47,6],[0,0,0,8],[2,0,2,8],[3,0,3,8],[40,2,40,6],[6,1,6,8],[7,1,7,8],[8,3,8,8],[33,0,33,7],[35,2,35,6],[36,2,36,6],[37,2,37,6],[38,2,38,6],[39,2,39,6]]}
["Subprograma Severo Ochoa. Convocatoria 2013- Informe de Seguimiento Económico Bienal. Memoria económica abreviada (versión 17/06/2016)"]
[]
["MEMORIA ECONÓMICA ABREVIADA"]
["DETALLE DE OTROS INGRESOS O SUBVENCIONES QUE HAN FINANCIADO LOS GASTOS SUBVENCIONABLES"]
[]
["REFERENCIA DE LA AYUDA:",{"$f":"'A) ESTADO REPR. GASTOS'!B6:C6","v":"Introduzca referencia"}]
["BENEFICIARIO:",{"$f":"'A) ESTADO REPR. GASTOS'!B7:I7","v":"Introduzca aquí el nombre de la entidad beneficiaria"}]
["CENTRO:",{"$f":"'A) ESTADO REPR. GASTOS'!B8:I8","v":"Introduzca aquí el nombre del Centro Acreditado como Severo Ochoa"}]
["AÑO:",{"$f":"'A) ESTADO REPR. GASTOS'!B9","v":"Año "},"N.I.F.:",{"$f":"'A) ESTADO REPR. GASTOS'!D9:I9","v":"Introduzca aquí el NIF del beneficiario"}]
[]
[" PERIODO DE EJECUCIÓN :","INICIO (dd/mm/aaaa):",{"$f":"'A) ESTADO REPR. GASTOS'!D11","v":"2014-07-01"}]
[null,"FIN (dd/mm/aaaa):",{"$f":"'A) ESTADO REPR. GASTOS'!D12","v":"2016-06-30"}]
[]
[]
[]
[]
["Nº Orden","Procedencia de los fondos","Fecha Resolución","a) Importe otorgado gastos personal (GP)","b) Importe otorgado otros gastos corrientes (OGC)","c) Importe otorgado gastos equipamiento (GE)","d) Importe otorgado otros (especificar)","Totales","%"]
[1,null,null,null,null,null,null,{"$f":"+D18+E18+F18+G18","v":0},{"$f":"H18/$H$31","v":{"$error":"#DIV/0!"}}]
[{"$f":"+A18+1","v":2},null,null,null,null,null,null,{"$f":"+D19+E19+F19+G19","v":0},{"$error":"#DIV/0!"}]
[3,null,null,null,null,null,null,{"$f":"+D20+E20+F20+G20","v":0},{"$error":"#DIV/0!"}]
[4,null,null,null,null,null,null,0,{"$error":"#DIV/0!"}]
[5,null,null,null,null,null,null,0,{"$error":"#DIV/0!"}]
[6,null,null,null,null,null,null,0,{"$error":"#DIV/0!"}]
[7,null,null,null,null,null,null,0,{"$error":"#DIV/0!"}]
[8,null,null,null,null,null,null,0,{"$error":"#DIV/0!"}]
[9,null,null,null,null,null,null,0,{"$error":"#DIV/0!"}]
[10,null,null,null,null,null,null,0,{"$error":"#DIV/0!"}]
["Inserte aquí más filas si es necesario"]
["…."]
[]
[null,null,"TOTALES",{"$f":"SUM(D18:D30)","v":0},{"$f":"SUM(E18:E30)","v":0},0,0,0,{"$error":"#DIV/0!"}]
[null,null,"%",{"$f":"D31/$H$31","v":{"$error":"#DIV/0!"}},{"$f":"E31/$H$31","v":{"$error":"#DIV/0!"}},{"$f":"F31/$H$31","v":{"$error":"#DIV/0!"}},{"$f":"G31/$H$31","v":{"$error":"#DIV/0!"}},{"$f":"H31/$H$31","v":{"$error":"#DIV/0!"}},{"$f":"SUM(D32:G32)","v":{"$error":"#DIV/0!"}}]
[]
["En caso de haberse otorgado para varios conceptos sin especificar los importes individualizados debe imputar la cuantía total en la columna d) y explicar los conceptos subvencionados en la tabla adjunta."]
[]
["Nº Orden","Procedencia de los fondos","Conceptos subvencionados",null,null,null,null,"d) Importe otorgado otros (especificar)"]
[1,{"$f":"B18","v":0},null,null,null,null,null,{"$f":"$G18","v":0}]
[{"$f":"+A37+1","v":2},{"$f":"B19","v":0},null,null,null,null,null,0]
[3,0,null,null,null,null,null,0]
[4,0,null,null,null,null,null,0]
[5,0,null,null,null,null,null,0]
[6,0,null,null,null,null,null,0]
[7,0,null,null,null,null,null,0]
[8,0,null,null,null,null,null,0]
[9,0,null,null,null,null,null,0]
[10,0,null,null,null,null,null,0]
["Inserte aquí más filas si es necesario"]
[null,null,null,null,null,null,null,{"$f":"$G30","v":0}]
[null,null,null,null,null,null,null,{"$f":"SUM(H37:H48)","v":0}]
[]
[]
[]
["Fondos adicionales recibidos para el desarrollo de las actividades subvencionadas y justificación de que no se supera el coste total de la actividad."]
[]
[]
[]
[]
[]
[]
[]
[]
[]
[]
[]
[]
[]
[]
[]
[]
[]
[]
[]
[]
[null,"Fdo.  ___________________________________________________________ "]
[]
[]
[null,"NIF:"]
[null,"En calidad de (cargo o vinculación): "]

{"sheet":"C) Gastos de Personal","index":2,"n_rows":70,"n_cols":10,"rows_kept":70,"cut":false,"hidden":false,"merged":[[38,0,38,9],[3,0,3,9],[0,0,0,8],[1,2,1,3]]}
["ANEXO 1. GASTOS DE PERSONAL "]
["REFERENCIA DE LA AYUDA:",null,{"$f":"'B) DETALLE OTROS ING. O SUBV.'!B6","v":"Introduzca referencia"}]
[]
["A. PERSONAL CONTRATADO CON CARGO A LA AYUDA"]
[]
[]
[]
[]
[]
[]
["APELLIDO 1","APELLIDO 2","NOMBRE","NIF/NIE","CATEGORÍA PROFESIONAL","VINCULACIÓN","ACTIVIDAD REALIZADA","FECHA DE ALTA","FECHA DE BAJA (en su caso)","OBSERVACIONES"]
[]
[]
[]
[]
[]
[]
[]
[]
[]
[]
[]
[]
[]
[]
[]
[]
[]
[]
[]
[]
[]
["Inserte aquí más filas si es necesario"]
[]
[]
[]
[]
[]
["B. PERSONAL QUE HA PERCIBIDO COMPLEMENTOS SALARIALES CON CARGO A LA AYUDA"]
[]
[]
[]
[]
[]
[]
[]
[]
["APELLIDO 1","APELLIDO 2","NOMBRE","NIF/NIE","CATEGORÍA PROFESIONAL","VINCULACIÓN","ACTIVIDAD REALIZADA","FECHA DE ALTA","FECHA DE BAJA (en su caso)","OBSERVACIONES"]
[]
[]
[]
[]
[]
[]
[]
[]
[]
[]
[]
[]
[]
[]
[]
[]
[]
[]
[]
[]
[]
["Inserte aquí más filas si es necesario"]

{"sheet":"D) Actividades Científicas","index":3,"n_rows":60,"n_cols":6,"rows_kept":60,"cut":false,"hidden":false,"merged":[[1,0,1,5],[3,2,3,3],[24,1,25,1],[24,4,25,4],[24,3,25,3],[24,2,25,2]]}
[]
["ANEXO 2. ORGANIZACIÓN DE ACTIVIDADES CIENTÍFICAS"]
[]
["REFERENCIA DE LA AYUDA:",null,{"$f":"'C) Gastos de Personal'!C2:D2","v":"Introduzca referencia"}]
[]
[]
[]
[]
[]
[]
[]
[]
[]
["A) GASTOS DE VIAJES ASOCIADOS A  ACTIVIDADES CIENTÍFICAS ORGANIZADAS CON CARGO A LA AYUDA"]
[]
[]
["Viajes y dietas","Gastos Inscripción congresos (en su caso)","Gasto Total ","Cofinanciación","Imputable a SO (€)"]
[null,null,{"$f":"SUM(A18:B18)","v":0},{"$f":"C18-E18","v":0}]
[]
[]
[]
["B) GASTOS DE ORGANIZACIÓN DE ACTIVIDADES CIENTÍFICAS ORGANIZADAS CON CARGO A LA AYUDA"]
[]
[]
[null,"IDENTIFICACIÓN DEL GASTO","Gasto Total ","Cofinanciación (€)","Imputable a SO (€)","JUSTIFICACIÓN"]
[]
[null,null,{"$f":"SUM(D27:E27)","v":0}]
[null,null,{"$f":"SUM(D28:E28)","v":0}]
[null,null,0]
[null,null,0]
[null,null,0]
[null,null,0]
[null,null,0]
[null,null,0]
[null,null,0]
[null,null,0]
[null,null,0]
[null,null,0]
[null,null,0]
[null,null,0]
[null,null,0]
[null,null,0]
[null,null,0]
[null,null,0]
[null,null,0]
[null,null,0]
[null,null,0]
[null,null,0]
[null,null,0]
[null,"Inserte aquí más filas si es necesario"]
[null,null,{"$f":"SUM(D51:E51)","v":0}]
[null,null,{"$f":"SUM(D52:E52)","v":0},{"$f":"SUM(D27:D51)","v":0},{"$f":"SUM(E27:E51)","v":0}]
[]
[]
[]
["C) GASTOS TOTALES DE ORGANIZACIÓN DE ACTIVIDADES CIENTÍFICAS ORGANIZADAS CON CARGO A LA AYUDA"]
[]
[]
[null,null,"Gasto Total ","Cofinanciación","Imputable a SO"]
[null,null,{"$f":"+C18+C52","v":0},{"$f":"+D18+D52","v":0},{"$f":"+E18+E52","v":0}]

{"sheet":"D) Otros Gastos","index":4,"n_rows":45,"n_cols":9,"rows_kept":45,"cut":false,"hidden":false,"merged":[[35,0,35,2],[35,6,35,7],[35,8,35,10],[21,0,21,2],[21,6,21,7],[21,8,21,10],[33,8,33,10],[34,0,34,2],[34,6,34,7],[34,8,34,10],[40,0,40,2],[40,6,40,7],[40,8,40,10],[37,0,37,2],[37,6,37,7],[37,8,37,10],[38,0,38,2],[38,6,38,7],[38,8,38,10],[39,0,39,2],[39,6,39,7],[39,8,39,10],[18,8,18,10],[28,0,28,10],[30,0,31,2],[30,6,31,7],[30,8,31,10],[30,3,31,3],[30,4,31,4],[29,0,29,10],[22,3,22,4],[19,0,19,2],[19,6,19,7],[19,8,19,10],[18,0,18,2],[18,6,18,7],[1,0,1,10],[8,0,9,2],[8,6,9,7],[8,8,9,10],[10,0,10,2],[10,6,10,7],[10,8,10,10],[4,3,4,4],[4,0,4,2],[6,0,6,10],[8,5,9,5],[8,3,9,3],[8,4,9,4],[7,0,7,10],[15,0,15,2],[15,6,15,7],[15,8,15,10],[16,0,16,2],[16,6,16,7],[16,8,16,10],[32,8,32,10],[13,0,13,2],[13,6,13,7],[13,8,13,10],[11,0,11,2],[11,6,11,7],[11,8,11,10],[12,0,12,2],[12,6,12,7],[12,8,12,10],[14,0,14,2],[14,6,14,7],[14,8,14,10],[17,0,17,2],[17,6,17,7],[17,8,17,10],[0,0,0,10],[43,0,43,2],[43,6,43,7],[43,8,43,10],[44,3,44,4],[30,5,31,5],[41,0,41,2],[41,6,41,7],[41,8,41,10],[36,0,36,2],[36,6,36,7],[36,8,36,10],[33,0,33,2],[33,6,33,7],[32,0,32,2],[32,6,32,7]]}
["ANEXO 3. GASTOS DE BIENES INVENTARIABLES,  Y OTROS GASTOS RELEVANTES"]
["MUY IMPORTANTE: \n\nSe recuerda que las contrataciones de servicios y suministros llevadas a cabo por los beneficiarios y con cargo a las ayudas a las que se refieren estas instrucciones deberán ajustarse a lo dispuesto en el artículo 31.3 de la Ley General de Subvenciones y, en su caso, a la legislación que sea de aplicación en materia de contratos según lo previsto en el Texto Refundido de la Ley de Contratos del Sector Público  (TRLCSP).\n\nDebe cumplimentarse este apartado independientemente de la justificación económica enviada por la entidad. Se deben incluir los principales conceptos de gastos con su importe (no el desglose de las facturas de la actividad), para valorar su adecuación a los objetivos y actividades realizadas en la actuación.\n"]
[]
[]
["REFERENCIA: ",null,null,"Introduzca referencia"]
[]
["Material inventariable. Es necesaria la descripción del gasto realizado, de forma que  permitan establecer la vinculación del gasto efectuado con la actividad subvencionada."]
["Ordene la relación según la temática de la actividad realizada, y, si es posible, haga referencia al apartado de los programas de investigación donde se hace referencia a la actividad."]
["IDENTIFICACIÓN DE LOS BIENES INVENTARIABLES",null,null,"GASTO TOTAL","COFINANCIACIÓN","IMPUTABLE A SO","EMPRESA PROVEEDORA",null,"JUSTIFICACIÓN DE LA ADQUISICIÓN"]
[]
[null,null,null,{"$f":"SUM(E11:F11)","v":0}]
[null,null,null,{"$f":"SUM(E12:F12)","v":0}]
[null,null,null,0]
[null,null,null,0]
[null,null,null,0]
[null,null,null,0]
[null,null,null,0]
[null,null,null,0]
[null,null,null,0]
[null,null,null,0]
["Inserte aquí más filas si es necesario"]
[null,null,null,0]
[null,null,null,"TOTAL",null,{"$f":"SUM(F11:F22)","v":0}]
[]
[]
[]
[]
[]
["Otros gastos. Es necesaria la descripción de los gastos relevantes (de un importe superior a 40.000€) incluidos en la justificación que no se han consignado en el resto de las categorías "]
["Ordene la relación según la temática de la actividad realizada, y, si es posible, haga referencia al apartado del  programa de investigación donde se hace referencia a la actividad.\n"]
["IDENTIFICACIÓN del GASTO ",null,null,"GASTO TOTAL","COFINANCIACIÓN","IMPUTABLE A SO","EMPRESA PROVEEDORA",null,"JUSTIFICACIÓN "]
[]
[null,null,null,{"$f":"SUM(E33:F33)","v":0}]
[null,null,null,0]
[null,null,null,0]
[null,null,null,0]
[null,null,null,0]
[null,null,null,0]
[null,null,null,0]
[null,null,null,0]
[null,null,null,0]
[null,null,null,0]
["Inserte aquí más filas si es necesario"]
[null,null,null,0]
[null,null,null,"TOTAL",null,{"$f":"SUM(F33:F44)","v":0}]